[Event "Titled Tuesday Blitz January 17 Early 2023"]
[White "Hartikainen, Jarmo"]
[Black "Dinu, Dumitru-Daniel"]
[WhiteFideId "503134"]
[BlackFideId "1208403"]
[WhiteElo "2108"]
[BlackElo "2203"]
[Result "1/2-1/2"]
[Round "03"]
[TimeControl "180+2"]
[Date "2023.01.17"]
[WhiteClock "0:00:14"]
[BlackClock "0:00:01"]

1. e4 {[%clk 0:03:00]}  c5 {[%clk 0:02:59]} 2. c3 {[%clk 0:03:01]}  d5 {[%clk 0:02:59]} 3. exd5 {[%clk 0:03:01]}  Qxd5 {[%clk 0:02:59]} 4. d4 {[%clk 0:03:01]}  Nc6 {[%clk 0:02:58]} 5. Nf3 {[%clk 0:03:01]}  g6 {[%clk 0:02:58]} 6. Na3 {[%clk 0:02:59]}  Bg7 {[%clk 0:02:56]} 7. Nb5 {[%clk 0:02:54]}  Qd8 {[%clk 0:02:53]} 8. dxc5 {[%clk 0:02:54]}  Qxd1+ {[%clk 0:02:52]} 9. Kxd1 {[%clk 0:02:54]}  Rb8 {[%clk 0:02:44]} 10. Bf4 {[%clk 0:02:50]}  e5 {[%clk 0:02:44]} 11. Nd6+ {[%clk 0:02:50]}  Ke7 {[%clk 0:02:42]} 12. Bg5+ {[%clk 0:02:39]}  f6 {[%clk 0:02:40]} 13. Be3 {[%clk 0:02:39]}  Bg4 {[%clk 0:02:36]} 14. Be2 {[%clk 0:02:34]}  Nh6 {[%clk 0:01:38]} 15. h3 {[%clk 0:02:20]}  Be6 {[%clk 0:01:37]} 16. Kc2 {[%clk 0:02:10]}  Rhd8 {[%clk 0:01:27]} 17. Rad1 {[%clk 0:02:07]}  Bxa2 {[%clk 0:00:22]} 18. b3 {[%clk 0:01:42]}  Na5 {[%clk 0:00:22]} 19. Bc4 {[%clk 0:01:33]}  b5 {[%clk 0:00:20]} 20. Nxb5 {[%clk 0:01:29]}  Nxc4 {[%clk 0:00:19]} 21. bxc4 {[%clk 0:01:25]}  Bxc4 {[%clk 0:00:20]} 22. Rxd8 {[%clk 0:01:19]}  Rxd8 {[%clk 0:00:17]} 23. Nxa7 {[%clk 0:01:12]}  Ra8 {[%clk 0:00:15]} 24. Ra1 {[%clk 0:01:07]}  Ke6 {[%clk 0:00:13]} 25. c6 {[%clk 0:01:06]}  Nf5 {[%clk 0:00:13]} 26. c7 {[%clk 0:00:51]}  Nd6 {[%clk 0:00:13]} 27. Kb2 {[%clk 0:00:43]}  Kd7 {[%clk 0:00:12]} 28. Bb6 {[%clk 0:00:40]}  Bd5 {[%clk 0:00:08]} 29. Ne1 {[%clk 0:00:38]}  Nc4+ {[%clk 0:00:09]} 30. Kc2 {[%clk 0:00:34]}  Nxb6 {[%clk 0:00:09]} 31. Nd3 {[%clk 0:00:34]}  Be4 {[%clk 0:00:09]} 32. Kd2 {[%clk 0:00:34]}  Bxd3 {[%clk 0:00:09]} 33. Kxd3 {[%clk 0:00:34]}  Kxc7 {[%clk 0:00:09]} 34. Nb5+ {[%clk 0:00:33]}  Kc6 {[%clk 0:00:09]} 35. Rxa8 {[%clk 0:00:30]}  Nxa8 {[%clk 0:00:10]} 36. c4 {[%clk 0:00:29]}  Nb6 {[%clk 0:00:09]} 37. Na7+ {[%clk 0:00:27]}  Kd7 {[%clk 0:00:08]} 38. Nb5 {[%clk 0:00:27]}  Na4 {[%clk 0:00:07]} 39. f3 {[%clk 0:00:27]}  Nc5+ {[%clk 0:00:07]} 40. Kc3 {[%clk 0:00:26]}  f5 {[%clk 0:00:07]} 41. Kd2 {[%clk 0:00:24]}  e4 {[%clk 0:00:07]} 42. fxe4 {[%clk 0:00:23]}  fxe4 {[%clk 0:00:07]} 43. Ke3 {[%clk 0:00:19]}  Kc6 {[%clk 0:00:07]} 44. Na3 {[%clk 0:00:18]}  Bh6+ {[%clk 0:00:06]} 45. Ke2 {[%clk 0:00:18]}  Ne6 {[%clk 0:00:06]} 46. Nc2 {[%clk 0:00:17]}  Kc5 {[%clk 0:00:05]} 47. Ne3 {[%clk 0:00:17]}  Bxe3 {[%clk 0:00:05]} 48. Kxe3 {[%clk 0:00:18]}  Kxc4 {[%clk 0:00:05]} 49. Kxe4 {[%clk 0:00:18]}  Kc5 {[%clk 0:00:06]} 50. Ke5 {[%clk 0:00:19]}  Nd4 {[%clk 0:00:05]} 51. g4 {[%clk 0:00:19]}  Ne2 {[%clk 0:00:05]} 52. h4 {[%clk 0:00:18]}  Kc4 {[%clk 0:00:03]} 53. Kf6 {[%clk 0:00:17]}  Nf4 {[%clk 0:00:03]} 54. Kg7 {[%clk 0:00:16]}  h5 {[%clk 0:00:03]} 55. gxh5 {[%clk 0:00:15]}  gxh5 {[%clk 0:00:04]} 56. Kf6 {[%clk 0:00:15]}  Kd4 {[%clk 0:00:04]} 57. Kg5 {[%clk 0:00:15]}  Ke3 {[%clk 0:00:04]} 58. Kh6 {[%clk 0:00:15]}  Kf3 {[%clk 0:00:05]} 59. Kg5 {[%clk 0:00:15]}  Kg3 {[%clk 0:00:05]} 60. Kf5 {[%clk 0:00:15]}  Kf3 {[%clk 0:00:03]} 61. Kg5 {[%clk 0:00:15]}  Ke4 {[%clk 0:00:04]} 62. Kf6 {[%clk 0:00:13]}  Kf3 {[%clk 0:00:01]} 63. Kg5 {[%clk 0:00:14]} 1/2-1/2


[Site "https://www.chess.com"]

[Event "Titled Tuesday Blitz January 17 Early 2023"]
[White "Smietanska, Wiktoria"]
[Black "Zherebtsova, Alexandra"]
[WhiteFideId "21869359"]
[BlackFideId "24129518"]
[WhiteElo "1936"]
[BlackElo "2155"]
[Result "0-1"]
[Round "03"]
[TimeControl "180+2"]
[Date "2023.01.17"]
[WhiteClock "0:00:01"]
[BlackClock "0:00:18"]

1. c4 {[%clk 0:03:00]}  e5 {[%clk 0:02:58]} 2. Nc3 {[%clk 0:03:00]}  Nc6 {[%clk 0:02:58]} 3. Nf3 {[%clk 0:02:59]}  f5 {[%clk 0:02:58]} 4. g3 {[%clk 0:02:58]}  Nf6 {[%clk 0:02:58]} 5. d4 {[%clk 0:02:56]}  e4 {[%clk 0:02:58]} 6. Nh4 {[%clk 0:02:56]}  g6 {[%clk 0:02:56]} 7. Ng2 {[%clk 0:02:56]}  Bg7 {[%clk 0:02:50]} 8. h4 {[%clk 0:02:55]}  h6 {[%clk 0:02:48]} 9. Nf4 {[%clk 0:02:52]}  Ne7 {[%clk 0:02:48]} 10. Bg2 {[%clk 0:02:51]}  O-O {[%clk 0:02:36]} 11. e3 {[%clk 0:02:48]}  c6 {[%clk 0:02:34]} 12. d5 {[%clk 0:02:44]}  cxd5 {[%clk 0:02:32]} 13. Ncxd5 {[%clk 0:02:39]}  Nexd5 {[%clk 0:02:23]} 14. Nxd5 {[%clk 0:02:27]}  Qa5+ {[%clk 0:02:11]} 15. Bd2 {[%clk 0:02:24]}  Qc5 {[%clk 0:01:47]} 16. Bb4 {[%clk 0:02:12]}  Qxc4 {[%clk 0:01:47]} 17. Bxf8 {[%clk 0:02:09]}  Kxf8 {[%clk 0:01:42]} 18. Nxf6 {[%clk 0:02:07]}  Bxf6 {[%clk 0:01:40]} 19. Qd6+ {[%clk 0:02:06]}  Kf7 {[%clk 0:01:37]} 20. h5 {[%clk 0:01:59]}  Bxb2 {[%clk 0:00:50]} 21. Qxg6+ {[%clk 0:01:37]}  Ke7 {[%clk 0:00:47]} 22. Rd1 {[%clk 0:00:46]}  Bc3+ {[%clk 0:00:41]} 23. Rd2 {[%clk 0:00:44]}  Qd3 {[%clk 0:00:37]} 24. Qh7+ {[%clk 0:00:27]}  Kd8 {[%clk 0:00:35]} 25. Qh8+ {[%clk 0:00:16]}  Bxh8 {[%clk 0:00:26]} 26. Rxd3 {[%clk 0:00:15]}  exd3 {[%clk 0:00:26]} 27. Kd2 {[%clk 0:00:14]}  d6 {[%clk 0:00:19]} 28. Kxd3 {[%clk 0:00:14]}  Kc7 {[%clk 0:00:19]} 29. Rc1+ {[%clk 0:00:11]}  Kd7 {[%clk 0:00:19]} 30. Bh3 {[%clk 0:00:10]}  Ke7 {[%clk 0:00:18]} 31. Rc7+ {[%clk 0:00:09]}  Kf6 {[%clk 0:00:18]} 32. Rh7 {[%clk 0:00:07]}  Bg7 {[%clk 0:00:19]} 33. Kd4 {[%clk 0:00:04]}  Be6 {[%clk 0:00:19]} 34. e4 {[%clk 0:00:02]}  Bg8 {[%clk 0:00:19]} 35. Bxf5 {[%clk 0:00:01]}  Bxh7 {[%clk 0:00:19]} 36. Bxh7 {[%clk 0:00:01]}  Re8 {[%clk 0:00:18]} 0-1


[Site "https://www.chess.com"]

[Event "Titled Tuesday Blitz January 17 Early 2023"]
[White "Forgacs, Attila Jr."]
[Black "Thiel, Thomas"]
[WhiteFideId "773654"]
[BlackFideId "4615964"]
[WhiteElo "2264"]
[BlackElo "2234"]
[Result "1-0"]
[Round "03"]
[TimeControl "180+2"]
[Date "2023.01.17"]
[WhiteClock "0:01:49"]
[BlackClock "0:01:14"]

1. e4 {[%clk 0:03:00]}  d5 {[%clk 0:02:59]} 2. exd5 {[%clk 0:03:01]}  Nf6 {[%clk 0:02:57]} 3. Nf3 {[%clk 0:03:00]}  Nxd5 {[%clk 0:02:57]} 4. d4 {[%clk 0:03:01]}  g6 {[%clk 0:02:55]} 5. c4 {[%clk 0:03:02]}  Nb6 {[%clk 0:02:54]} 6. Nc3 {[%clk 0:03:01]}  Bg7 {[%clk 0:02:54]} 7. Be3 {[%clk 0:02:59]}  O-O {[%clk 0:02:51]} 8. Be2 {[%clk 0:02:59]}  Bg4 {[%clk 0:02:48]} 9. b3 {[%clk 0:02:57]}  Nc6 {[%clk 0:02:45]} 10. Qd2 {[%clk 0:02:17]}  Bxf3 {[%clk 0:02:30]} 11. Bxf3 {[%clk 0:02:18]}  Nxd4 {[%clk 0:02:28]} 12. Bxd4 {[%clk 0:02:18]}  Qxd4 {[%clk 0:02:23]} 13. Qxd4 {[%clk 0:02:09]}  Bxd4 {[%clk 0:02:24]} 14. Rc1 {[%clk 0:02:09]}  c6 {[%clk 0:02:19]} 15. O-O {[%clk 0:02:08]}  Rad8 {[%clk 0:02:14]} 16. Rfe1 {[%clk 0:02:07]}  e6 {[%clk 0:02:13]} 17. Ne4 {[%clk 0:02:07]}  h6 {[%clk 0:02:05]} 18. c5 {[%clk 0:02:01]}  Nd5 {[%clk 0:02:01]} 19. Nd6 {[%clk 0:01:58]}  Bxc5 {[%clk 0:01:44]} 20. Nxb7 {[%clk 0:01:57]}  Bb4 {[%clk 0:01:43]} 21. Nxd8 {[%clk 0:01:57]}  Bxe1 {[%clk 0:01:36]} 22. Nxc6 {[%clk 0:01:51]}  Bd2 {[%clk 0:01:23]} 23. Rd1 {[%clk 0:01:50]}  Rc8 {[%clk 0:01:14]} 24. Bxd5 {[%clk 0:01:49]} 1-0


[Site "https://www.chess.com"]

[Event "Titled Tuesday Blitz January 17 Early 2023"]
[White "Seletsky, Grigory"]
[Black "Granados Diaz, Maria Esther"]
[WhiteFideId "14112191"]
[BlackFideId "6101488"]
[WhiteElo "2259"]
[BlackElo "1868"]
[Result "0-1"]
[Round "03"]
[TimeControl "180+2"]
[Date "2023.01.17"]
[WhiteClock "0:00:04"]
[BlackClock "0:00:08"]

1. e4 {[%clk 0:02:54]}  e5 {[%clk 0:02:59]} 2. Nf3 {[%clk 0:02:52]}  Nc6 {[%clk 0:02:59]} 3. Bc4 {[%clk 0:02:53]}  Nf6 {[%clk 0:02:57]} 4. c3 {[%clk 0:02:53]}  Nxe4 {[%clk 0:02:42]} 5. Qe2 {[%clk 0:02:51]}  d5 {[%clk 0:02:41]} 6. Bb5 {[%clk 0:02:50]}  Bd6 {[%clk 0:02:33]} 7. d3 {[%clk 0:02:48]}  Nf6 {[%clk 0:02:27]} 8. Nxe5 {[%clk 0:02:48]}  O-O {[%clk 0:02:18]} 9. Nxc6 {[%clk 0:02:44]}  bxc6 {[%clk 0:02:17]} 10. Bxc6 {[%clk 0:02:45]}  Rb8 {[%clk 0:02:08]} 11. O-O {[%clk 0:02:43]}  Bg4 {[%clk 0:02:03]} 12. f3 {[%clk 0:02:38]}  Bf5 {[%clk 0:02:00]} 13. Ba4 {[%clk 0:02:25]}  h6 {[%clk 0:01:54]} 14. d4 {[%clk 0:02:18]}  c5 {[%clk 0:01:50]} 15. Be3 {[%clk 0:02:14]}  Qa5 {[%clk 0:01:43]} 16. Bd1 {[%clk 0:02:10]}  Rfe8 {[%clk 0:01:42]} 17. Qd2 {[%clk 0:02:09]}  Rxe3 {[%clk 0:01:16]} 18. Qxe3 {[%clk 0:02:08]}  Rxb2 {[%clk 0:01:16]} 19. Be2 {[%clk 0:01:55]}  cxd4 {[%clk 0:01:10]} 20. cxd4 {[%clk 0:01:54]}  Bc7 {[%clk 0:00:37]} 21. Nc3 {[%clk 0:01:38]}  Bb6 {[%clk 0:00:34]} 22. Rfd1 {[%clk 0:01:36]}  Qb4 {[%clk 0:00:31]} 23. Rac1 {[%clk 0:01:34]}  Bc2 {[%clk 0:00:25]} 24. Rd2 {[%clk 0:01:21]}  Bf5 {[%clk 0:00:14]} 25. Rcd1 {[%clk 0:00:58]}  Rxd2 {[%clk 0:00:10]} 26. Qxd2 {[%clk 0:00:45]}  Ba5 {[%clk 0:00:08]} 27. Rc1 {[%clk 0:00:43]}  Kh7 {[%clk 0:00:08]} 28. Kh1 {[%clk 0:00:31]}  Be4 {[%clk 0:00:07]} 29. Bd3 {[%clk 0:00:25]}  Bxd3 {[%clk 0:00:06]} 30. Qxd3+ {[%clk 0:00:26]}  g6 {[%clk 0:00:07]} 31. Ne2 {[%clk 0:00:23]}  Kg7 {[%clk 0:00:07]} 32. g4 {[%clk 0:00:22]}  Qb2 {[%clk 0:00:04]} 33. Qc2 {[%clk 0:00:19]}  Qb6 {[%clk 0:00:03]} 34. Kg2 {[%clk 0:00:19]}  Qe6 {[%clk 0:00:03]} 35. Qd3 {[%clk 0:00:17]}  Bb6 {[%clk 0:00:02]} 36. Rc2 {[%clk 0:00:13]}  Nh7 {[%clk 0:00:02]} 37. Nf4 {[%clk 0:00:12]}  Qf6 {[%clk 0:00:02]} 38. Nxd5 {[%clk 0:00:12]}  Qh4 {[%clk 0:00:02]} 39. Nxb6 {[%clk 0:00:11]}  axb6 {[%clk 0:00:03]} 40. Qe3 {[%clk 0:00:11]}  Ng5 {[%clk 0:00:03]} 41. Qf2 {[%clk 0:00:11]}  Qh3+ {[%clk 0:00:04]} 42. Kg1 {[%clk 0:00:10]}  Nxf3+ {[%clk 0:00:04]} 43. Qxf3 {[%clk 0:00:10]}  Qxf3 {[%clk 0:00:03]} 44. Rf2 {[%clk 0:00:11]}  Qxg4+ {[%clk 0:00:03]} 45. Kf1 {[%clk 0:00:12]}  Qxd4 {[%clk 0:00:03]} 46. Kg2 {[%clk 0:00:12]}  b5 {[%clk 0:00:03]} 47. h3 {[%clk 0:00:12]}  f5 {[%clk 0:00:03]} 48. Re2 {[%clk 0:00:12]}  Kf6 {[%clk 0:00:03]} 49. Rf2 {[%clk 0:00:13]}  Qe4+ {[%clk 0:00:03]} 50. Kg1 {[%clk 0:00:11]}  f4 {[%clk 0:00:03]} 51. Kf1 {[%clk 0:00:09]}  g5 {[%clk 0:00:03]} 52. Re2 {[%clk 0:00:09]}  Qd3 {[%clk 0:00:03]} 53. Kf2 {[%clk 0:00:09]}  Kf5 {[%clk 0:00:03]} 54. Re8 {[%clk 0:00:09]}  Qg3+ {[%clk 0:00:02]} 55. Kf1 {[%clk 0:00:08]}  Qxh3+ {[%clk 0:00:01]} 56. Ke1 {[%clk 0:00:07]}  Qc3+ {[%clk 0:00:01]} 57. Ke2 {[%clk 0:00:07]}  Qc4+ {[%clk 0:00:01]} 58. Kf2 {[%clk 0:00:07]}  Qxa2+ {[%clk 0:00:01]} 59. Kf1 {[%clk 0:00:06]}  Qb3 {[%clk 0:00:02]} 60. Re2 {[%clk 0:00:05]}  Kg4 {[%clk 0:00:02]} 61. Rg2+ {[%clk 0:00:04]}  Kf5 {[%clk 0:00:03]} 62. Re2 {[%clk 0:00:04]}  Qd3 {[%clk 0:00:03]} 63. Ke1 {[%clk 0:00:02]}  Qxe2+ {[%clk 0:00:04]} 64. Kxe2 {[%clk 0:00:02]}  b4 {[%clk 0:00:05]} 65. Kd3 {[%clk 0:00:02]}  h5 {[%clk 0:00:06]} 66. Kc4 {[%clk 0:00:03]}  g4 {[%clk 0:00:07]} 67. Kc5 {[%clk 0:00:04]}  f3 {[%clk 0:00:07]} 68. Kc6 {[%clk 0:00:04]}  g3 {[%clk 0:00:08]} 0-1


[Site "https://www.chess.com"]

[Event "Titled Tuesday Blitz January 17 Early 2023"]
[White "Marn, Jan"]
[Black "Clawitter, Craig"]
[WhiteFideId "14619245"]
[BlackFideId "2023105"]
[WhiteElo "2345"]
[BlackElo "2050"]
[Result "1-0"]
[Round "03"]
[TimeControl "180+2"]
[Date "2023.01.17"]
[WhiteClock "0:00:51"]
[BlackClock "0:00:26"]

1. d4 {[%clk 0:02:55]}  e6 {[%clk 0:02:59]} 2. Nf3 {[%clk 0:02:51]}  Nf6 {[%clk 0:02:59]} 3. e3 {[%clk 0:02:51]}  c5 {[%clk 0:02:57]} 4. Bd3 {[%clk 0:02:51]}  b6 {[%clk 0:02:54]} 5. O-O {[%clk 0:02:51]}  Bb7 {[%clk 0:02:53]} 6. b3 {[%clk 0:02:51]}  Be7 {[%clk 0:02:53]} 7. Bb2 {[%clk 0:02:51]}  O-O {[%clk 0:02:53]} 8. Nbd2 {[%clk 0:02:51]}  cxd4 {[%clk 0:02:51]} 9. exd4 {[%clk 0:02:51]}  d6 {[%clk 0:02:50]} 10. c4 {[%clk 0:02:50]}  a6 {[%clk 0:02:47]} 11. Re1 {[%clk 0:02:44]}  Nbd7 {[%clk 0:02:47]} 12. Qc2 {[%clk 0:02:44]}  Re8 {[%clk 0:02:46]} 13. Re2 {[%clk 0:02:37]}  Nf8 {[%clk 0:02:42]} 14. Rae1 {[%clk 0:02:36]}  Rc8 {[%clk 0:02:37]} 15. a4 {[%clk 0:02:33]}  Ng6 {[%clk 0:02:18]} 16. Ng5 {[%clk 0:02:15]}  Nf4 {[%clk 0:01:50]} 17. Bxh7+ {[%clk 0:02:08]}  Kf8 {[%clk 0:01:49]} 18. d5 {[%clk 0:01:33]}  Nxe2+ {[%clk 0:01:38]} 19. Rxe2 {[%clk 0:01:34]}  exd5 {[%clk 0:01:22]} 20. Bg6 {[%clk 0:01:19]}  dxc4 {[%clk 0:01:16]} 21. Bxf7 {[%clk 0:01:17]}  c3 {[%clk 0:00:55]} 22. Qg6 {[%clk 0:01:10]}  Qd7 {[%clk 0:00:26]} 23. Be6 {[%clk 0:00:51]} 1-0


[Site "https://www.chess.com"]

[Event "Titled Tuesday Blitz January 17 Early 2023"]
[White "Fajdetic, Hrvoje"]
[Black "Buscar, Michael"]
[WhiteFideId "14501945"]
[BlackFideId "2603616"]
[WhiteElo "2151"]
[BlackElo "2041"]
[Result "0-1"]
[Round "03"]
[TimeControl "180+2"]
[Date "2023.01.17"]
[WhiteClock "0:00:11"]
[BlackClock "0:00:11"]

1. f4 {[%clk 0:02:57]}  g6 {[%clk 0:02:57]} 2. e4 {[%clk 0:02:56]}  d5 {[%clk 0:02:51]} 3. e5 {[%clk 0:02:54]}  Bg7 {[%clk 0:02:47]} 4. Nf3 {[%clk 0:02:54]}  Nh6 {[%clk 0:02:47]} 5. d4 {[%clk 0:02:53]}  Nf5 {[%clk 0:02:47]} 6. Bd3 {[%clk 0:02:49]}  h5 {[%clk 0:02:45]} 7. O-O {[%clk 0:02:48]}  b6 {[%clk 0:02:39]} 8. Qe2 {[%clk 0:02:46]}  a5 {[%clk 0:02:38]} 9. c3 {[%clk 0:02:44]}  Ba6 {[%clk 0:02:38]} 10. Bxa6 {[%clk 0:02:43]}  Nxa6 {[%clk 0:02:37]} 11. Na3 {[%clk 0:02:43]}  c6 {[%clk 0:02:37]} 12. Nc2 {[%clk 0:02:43]}  Nc7 {[%clk 0:02:36]} 13. Ne3 {[%clk 0:02:43]}  Qd7 {[%clk 0:02:31]} 14. Ng5 {[%clk 0:02:41]}  Nxe3 {[%clk 0:02:23]} 15. Bxe3 {[%clk 0:02:41]}  Qf5 {[%clk 0:02:20]} 16. a4 {[%clk 0:02:29]}  Bh6 {[%clk 0:02:14]} 17. Nh3 {[%clk 0:02:26]}  Ne6 {[%clk 0:02:08]} 18. c4 {[%clk 0:02:22]}  O-O {[%clk 0:01:53]} 19. Rae1 {[%clk 0:02:09]}  Rfc8 {[%clk 0:01:33]} 20. Rf3 {[%clk 0:02:03]}  Rab8 {[%clk 0:01:10]} 21. Nf2 {[%clk 0:01:48]}  b5 {[%clk 0:01:01]} 22. h3 {[%clk 0:01:39]}  h4 {[%clk 0:00:52]} 23. axb5 {[%clk 0:01:31]}  cxb5 {[%clk 0:00:32]} 24. Ng4 {[%clk 0:01:18]}  Bg7 {[%clk 0:00:21]} 25. cxd5 {[%clk 0:01:18]}  Rc2 {[%clk 0:00:20]} 26. dxe6 {[%clk 0:00:55]}  Rxe2 {[%clk 0:00:19]} 27. exf7+ {[%clk 0:00:56]}  Qxf7 {[%clk 0:00:16]} 28. Rxe2 {[%clk 0:00:56]}  Qc4 {[%clk 0:00:16]} 29. Rd2 {[%clk 0:00:53]}  b4 {[%clk 0:00:15]} 30. d5 {[%clk 0:00:50]}  a4 {[%clk 0:00:14]} 31. Rff2 {[%clk 0:00:44]}  a3 {[%clk 0:00:14]} 32. bxa3 {[%clk 0:00:44]}  bxa3 {[%clk 0:00:14]} 33. Nh2 {[%clk 0:00:40]}  Qc1+ {[%clk 0:00:08]} 34. Nf1 {[%clk 0:00:39]}  Rb2 {[%clk 0:00:05]} 35. Rxb2 {[%clk 0:00:36]}  axb2 {[%clk 0:00:05]} 36. d6 {[%clk 0:00:30]}  exd6 {[%clk 0:00:04]} 37. exd6 {[%clk 0:00:26]}  Qxe3 {[%clk 0:00:02]} 38. Nxe3 {[%clk 0:00:26]}  b1=Q+ {[%clk 0:00:03]} 39. Kh2 {[%clk 0:00:25]}  Qd3 {[%clk 0:00:03]} 40. Ng4 {[%clk 0:00:18]}  Qxd6 {[%clk 0:00:02]} 41. Kg1 {[%clk 0:00:17]}  Bd4 {[%clk 0:00:01]} 42. Kf1 {[%clk 0:00:18]}  Bxf2 {[%clk 0:00:02]} 43. Kxf2 {[%clk 0:00:19]}  Qd4+ {[%clk 0:00:02]} 44. Kf3 {[%clk 0:00:19]}  Qd3+ {[%clk 0:00:03]} 45. Kf2 {[%clk 0:00:19]}  Qg3+ {[%clk 0:00:03]} 46. Kf1 {[%clk 0:00:17]}  Qxf4+ {[%clk 0:00:04]} 47. Kg1 {[%clk 0:00:18]}  Kg7 {[%clk 0:00:05]} 48. Nf2 {[%clk 0:00:16]}  Qe3 {[%clk 0:00:05]} 49. Kf1 {[%clk 0:00:16]}  g5 {[%clk 0:00:05]} 50. Ng4 {[%clk 0:00:17]}  Qc1+ {[%clk 0:00:06]} 51. Kf2 {[%clk 0:00:17]}  Qf4+ {[%clk 0:00:07]} 52. Kg1 {[%clk 0:00:17]}  Qg3 {[%clk 0:00:08]} 53. Kf1 {[%clk 0:00:17]}  Kf7 {[%clk 0:00:08]} 54. Nf2 {[%clk 0:00:17]}  Ke6 {[%clk 0:00:08]} 55. Ne4 {[%clk 0:00:18]}  Qf4+ {[%clk 0:00:08]} 56. Nf2 {[%clk 0:00:18]}  Ke5 {[%clk 0:00:09]} 57. Ke2 {[%clk 0:00:17]}  Kd4 {[%clk 0:00:09]} 58. Ng4 {[%clk 0:00:16]}  Qe4+ {[%clk 0:00:10]} 59. Kf2 {[%clk 0:00:17]}  Qc2+ {[%clk 0:00:10]} 60. Kf3 {[%clk 0:00:17]}  Qa2 {[%clk 0:00:10]} 61. Nf2 {[%clk 0:00:15]}  Qa3+ {[%clk 0:00:10]} 62. Ke2 {[%clk 0:00:15]}  Ke5 {[%clk 0:00:10]} 63. Nd3+ {[%clk 0:00:13]}  Ke4 {[%clk 0:00:10]} 64. Nf2+ {[%clk 0:00:13]}  Kf4 {[%clk 0:00:10]} 65. Nh1 {[%clk 0:00:10]}  Qa2+ {[%clk 0:00:10]} 66. Kf1 {[%clk 0:00:10]}  Qb1+ {[%clk 0:00:10]} 67. Kf2 {[%clk 0:00:11]}  Qxh1 {[%clk 0:00:11]} 68. g3+ {[%clk 0:00:11]}  hxg3+ {[%clk 0:00:11]} 0-1


[Site "https://www.chess.com"]

[Event "Titled Tuesday Blitz January 17 Early 2023"]
[White "Devaev, Alexander"]
[Black "Cepo, Toni"]
[WhiteFideId "4169395"]
[BlackFideId "4675916"]
[WhiteElo "2325"]
[BlackElo "2145"]
[Result "1-0"]
[Round "03"]
[TimeControl "180+2"]
[Date "2023.01.17"]
[WhiteClock "0:02:19"]
[BlackClock "0:01:57"]

1. d4 {[%clk 0:03:00]}  Nf6 {[%clk 0:02:57]} 2. c4 {[%clk 0:03:01]}  e6 {[%clk 0:02:57]} 3. Nc3 {[%clk 0:03:01]}  d5 {[%clk 0:02:53]} 4. Bg5 {[%clk 0:03:00]}  Bb4 {[%clk 0:02:49]} 5. cxd5 {[%clk 0:02:57]}  exd5 {[%clk 0:02:46]} 6. Nf3 {[%clk 0:02:56]}  h6 {[%clk 0:02:34]} 7. Bh4 {[%clk 0:02:55]}  c6 {[%clk 0:02:33]} 8. Qb3 {[%clk 0:02:42]}  Qe7 {[%clk 0:02:28]} 9. Bxf6 {[%clk 0:02:39]}  gxf6 {[%clk 0:02:29]} 10. e3 {[%clk 0:02:39]}  Bf5 {[%clk 0:02:26]} 11. a3 {[%clk 0:02:37]}  Bd6 {[%clk 0:02:25]} 12. g3 {[%clk 0:02:35]}  h5 {[%clk 0:02:11]} 13. Nh4 {[%clk 0:02:35]}  Be4 {[%clk 0:02:09]} 14. Nxe4 {[%clk 0:02:28]}  Qxe4 {[%clk 0:02:10]} 15. Bg2 {[%clk 0:02:22]}  Qe7 {[%clk 0:02:06]} 16. Nf5 {[%clk 0:02:22]}  Qd7 {[%clk 0:02:04]} 17. Nxd6+ {[%clk 0:02:19]}  Qxd6 {[%clk 0:01:57]} 18. Qxb7 {[%clk 0:02:19]} 1-0


[Site "https://www.chess.com"]

[Event "Titled Tuesday Blitz January 17 Early 2023"]
[White "MunichMouse"]
[Black "Silva, Pedro Gil Ferreira Da"]
[BlackFideId "1946102"]
[WhiteElo "2211"]
[BlackElo "2227"]
[Result "1-0"]
[Round "03"]
[TimeControl "180+2"]
[Date "2023.01.17"]
[WhiteClock "0:01:02"]
[BlackClock "0:00:49"]

1. d4 {[%clk 0:03:00]}  Nf6 {[%clk 0:02:59]} 2. c4 {[%clk 0:03:00]}  e6 {[%clk 0:02:55]} 3. Nf3 {[%clk 0:02:59]}  Bb4+ {[%clk 0:02:53]} 4. Bd2 {[%clk 0:02:59]}  c5 {[%clk 0:02:47]} 5. Bxb4 {[%clk 0:02:57]}  cxb4 {[%clk 0:02:48]} 6. Qd3 {[%clk 0:02:57]}  d6 {[%clk 0:02:48]} 7. e4 {[%clk 0:02:57]}  O-O {[%clk 0:02:47]} 8. Nbd2 {[%clk 0:02:56]}  Nc6 {[%clk 0:02:47]} 9. Rg1 {[%clk 0:02:47]}  e5 {[%clk 0:02:46]} 10. d5 {[%clk 0:02:46]}  Nb8 {[%clk 0:02:45]} 11. h3 {[%clk 0:02:46]}  Na6 {[%clk 0:02:43]} 12. g4 {[%clk 0:02:45]}  Nc5 {[%clk 0:02:43]} 13. Qc2 {[%clk 0:02:45]}  Nfd7 {[%clk 0:02:41]} 14. g5 {[%clk 0:02:42]}  a5 {[%clk 0:02:40]} 15. h4 {[%clk 0:02:38]}  a4 {[%clk 0:02:38]} 16. Qd1 {[%clk 0:02:34]}  Nb6 {[%clk 0:02:28]} 17. Rc1 {[%clk 0:02:33]}  b3 {[%clk 0:02:25]} 18. a3 {[%clk 0:02:32]}  f5 {[%clk 0:02:21]} 19. gxf6 {[%clk 0:02:19]}  Qxf6 {[%clk 0:02:20]} 20. Rg3 {[%clk 0:02:16]}  Bd7 {[%clk 0:02:16]} 21. Qe2 {[%clk 0:02:12]}  Rf7 {[%clk 0:02:11]} 22. Ng5 {[%clk 0:02:09]}  Re7 {[%clk 0:02:09]} 23. Rcc3 {[%clk 0:02:10]}  Qf4 {[%clk 0:01:47]} 24. h5 {[%clk 0:01:57]}  h6 {[%clk 0:01:45]} 25. Nh3 {[%clk 0:01:35]}  Bxh3 {[%clk 0:01:44]} 26. Rxh3 {[%clk 0:01:36]}  Rf8 {[%clk 0:01:44]} 27. Rcf3 {[%clk 0:01:35]}  Qg5 {[%clk 0:01:41]} 28. Rhg3 {[%clk 0:01:35]}  Qh4 {[%clk 0:01:40]} 29. Rxf8+ {[%clk 0:01:32]}  Kxf8 {[%clk 0:01:41]} 30. Qf3+ {[%clk 0:01:32]}  Rf7 {[%clk 0:01:39]} 31. Qg2 {[%clk 0:01:32]}  Nbd7 {[%clk 0:01:32]} 32. Be2 {[%clk 0:01:31]}  Nf6 {[%clk 0:01:29]} 33. Rh3 {[%clk 0:01:28]}  Qf4 {[%clk 0:01:23]} 34. Rf3 {[%clk 0:01:05]}  Qg5 {[%clk 0:01:22]} 35. Rg3 {[%clk 0:01:03]}  Qh4 {[%clk 0:00:49]} 36. Rh3 {[%clk 0:01:02]}  Qxe4 {[%clk 0:00:49]} 37. Nxe4 {[%clk 0:01:02]} 1-0


[Site "https://www.chess.com"]